fUST/lending_fUST_20240401
["ID","MTS","AMOUNT","RATE_DAILY","PERIOD"]
[321197542,1711974646594,-313.970851,0.00054794,7]
[321197543,1711974646603,-313.970851,0.00054794,7]
[321197544,1711974646612,-500.0,0.00054794,120]
[321197545,1711974646622,-500.0,0.00054794,120]
[321197546,1711974646630,-500.0,0.00054794,120]
[321197547,1711974646640,-500.0,0.00054794,120]
[321197548,1711974646649,-500.0,0.00054794,120]
[321197549,1711974646658,-500.0,0.00054794,120]
[321197550,1711974646668,-500.0,0.00054794,120]
[321197551,1711974646676,-227.48609946,0.00054794,120]
[321197552,1711974646685,-500.0,0.00054794,120]
[321197553,1711974646695,-500.0,0.00054794,120]
[321197554,1711974646703,-604.62026387,0.00054794,120]
[321197555,1711974646712,-500.0,0.00054794,120]
[321197556,1711974646722,-500.0,0.00054794,120]
[321197557,1711974646731,-500.0,0.00054794,120]
[321197558,1711974646740,-404.82556555,0.00054794,120]
[321197559,1711974646750,-500.0,0.00054794,120]
[321197560,1711974646759,-500.0,0.00054794,120]
[321197561,1711974646768,-500.0,0.00054794,120]
[321197562,1711974646777,-500.0,0.00054794,120]
[321197563,1711974646786,-500.66900747,0.00054794,120]
[321197564,1711974646796,-236.69007711,0.00054794,120]
[321197565,1711974646805,-515.01329523,0.00054794,120]
[321197566,1711974646814,-500.0,0.00054794,120]
[321197567,1711974646825,-500.74034514,0.00054794,120]
[321197568,1711974646834,-502.57862396,0.00054794,120]
[321197569,1711974646842,-500.0,0.00054794,120]
[321197570,1711974646852,-618.06023575,0.00054794,120]
[321197571,1711974646861,-500.0,0.00054794,120]
[321197572,1711974646870,-500.0,0.00054794,120]
[321197573,1711974646880,-501.15504627,0.00054794,120]
[321197574,1711974646956,-500.0,0.00054794,120]
[321197575,1711974646966,-180.67439961,0.00054794,120]
[321197576,1711974646975,-455.32574208,0.00054794,120]
[321197577,1711974646984,-502.786375,0.00054794,120]
[321197578,1711974646994,-171.56824331,0.00054794,120]
[321197579,1711974647003,-500.0,0.00054794,120]
[321197580,1711974647012,-500.0,0.00054794,120]
[321197581,1711974647021,-501.34347449,0.00054794,120]
[321197582,1711974647033,-168.84167167,0.00054794,120]
[321197583,1711974647043,-500.0,0.00054794,120]
[321197584,1711974647052,-500.0,0.00054794,120]
[321197585,1711974647062,-500.0,0.00054794,120]
[321197586,1711974647072,-502.30509329,0.00054794,120]
[321197587,1711974647081,-500.0,0.00054794,120]
[321197588,1711974647091,-500.0,0.00054794,120]
[321197589,1711974647101,-500.0,0.00054794,120]
[321197590,1711974647110,-500.0,0.00054794,120]
[321197591,1711974647120,-500.0,0.00054794,120]
[321197592,1711974647130,-503.56974837,0.00054794,120]
[321197593,1711974647139,-500.0,0.00054794,120]
[321197594,1711974647148,-504.36130204,0.00054794,120]
[321197595,1711974647157,-500.0,0.00054794,120]
[321197596,1711974647166,-500.0,0.00054794,120]
[321197597,1711974647175,-500.0,0.00054794,120]
[321197598,1711974647185,-500.0,0.00054794,120]
[321197599,1711974647194,-500.0,0.00054794,120]
[321197600,1711974647203,-509.71055174,0.00054794,120]
[321197601,1711974647212,-500.0,0.00054794,2]
[321197602,1711974647221,-503.9675099,0.00054794,120]
[321197603,1711974647230,-594.2940873,0.00054794,120]
[321197604,1711974647240,-151.79554978,0.00054794,120]
[321197605,1711974647249,-500.0,0.00054794,120]
[321197606,1711974647259,-151.0,0.00054794,7]
[321197607,1711974647269,-500.0,0.00054794,120]
[321197608,1711974647278,-500.0,0.00054794,120]
[321197609,1711974647287,-503.63676209,0.00054794,120]
[321197610,1711974647296,-500.0,0.00054794,120]
[321197611,1711974647305,-500.0,0.00054794,120]
[321197612,1711974647315,-500.0,0.00054794,120]
[321197613,1711974647326,-500.0,0.00054794,120]
[321197614,1711974647335,-385.12096486,0.00054794,120]
[321197615,1711974647343,-500.0,0.00054794,120]
[321197616,1711974647352,-500.0,0.00054794,120]
[321197617,1711974647361,-318.692967,0.00054794,7]
[321197618,1711974647370,-318.692967,0.00054794,7]
[321197619,1711974647379,-503.02327932,0.00054794,120]
[321197620,1711974647388,-318.692967,0.00054794,7]
[321197621,1711974647397,-318.692967,0.00054794,7]
[321197622,1711974647406,-318.692967,0.00054794,7]
[321197623,1711974647415,-318.692967,0.00054794,7]
[321197624,1711974647424,-318.692967,0.00054794,7]
[321197625,1711974647433,-318.692967,0.00054794,7]
[321197626,1711974647442,-318.692967,0.00054794,7]
[321197627,1711974647451,-318.692967,0.00054794,7]
[321197628,1711974647460,-500.0,0.00054794,120]
[321197629,1711974647469,-318.692967,0.00054794,7]
[321197630,1711974647478,-318.692967,0.00054794,7]
[321197631,1711974647487,-500.0,0.00054794,120]
[321197632,1711974647496,-318.692967,0.00054794,7]
[321197633,1711974647505,-318.692967,0.00054794,7]
[321197634,1711974647514,-318.692967,0.00054794,7]
[321197635,1711974647523,-318.692967,0.00054794,7]
[321197636,1711974647533,-318.692967,0.00054794,7]
[321197637,1711974647541,-607.1289143,0.00054794,120]
[321197638,1711974647550,-500.0,0.00054794,120]
[321197639,1711974647559,-318.692967,0.00054794,7]
[321197640,1711974647569,-500.0,0.00054794,120]
[321197641,1711974647578,-500.0,0.00054794,120]
[321197642,1711974647587,-266.72467873,0.00054794,120]
[321197643,1711974647596,-500.0,0.00054794,120]
[321197644,1711974647605,-658.8,0.00054794,120]
[321197645,1711974647614,-500.0,0.00054794,120]
[321197646,1711974647623,-501.72908911,0.00054794,120]
[321197647,1711974647632,-500.0,0.00054794,120]
[321197648,1711974647641,-500.0,0.00054794,120]
[321197649,1711974647650,-500.0,0.00054794,120]
[321197650,1711974647659,-501.46703523,0.00054794,120]
[321197651,1711974647668,-195.17579941,0.00054794,120]
[321197652,1711974647677,-500.0,0.00054794,120]
[321197653,1711974647686,-503.95099454,0.00054794,120]
[321197654,1711974647695,-500.0,0.00054794,120]
[321197655,1711974647704,-500.0,0.00054794,120]
[321197656,1711974647713,-503.2099215,0.00054794,120]
[321197657,1711974647722,-151.0,0.00054794,7]
[321197658,1711974647732,-151.0,0.00054794,7]
[321197659,1711974647742,-151.0,0.00054794,7]
[321197660,1711974647752,-151.0,0.00054794,7]
[321197661,1711974647761,-151.0,0.00054794,7]
[321197662,1711974647770,-151.0,0.00054794,7]
[321197663,1711974647779,-151.0,0.00054794,7]
[321197664,1711974647788,-151.0,0.00054794,7]
[321197665,1711974647798,-151.0,0.00054794,7]
[321197666,1711974647806,-153.892185,0.00054794,7]
[321197667,1711974647815,-504.40396951,0.00054794,120]
[321197668,1711974647826,-500.0,0.00054794,120]
[321197669,1711974647835,-500.0,0.00054794,120]
[321197670,1711974647843,-151.0,0.00054794,7]
[321197671,1711974647853,-151.0,0.00054794,7]
[321197672,1711974647862,-151.0,0.00054794,7]
[321197673,1711974647871,-151.0,0.00054794,7]
[321197674,1711974647881,-151.0,0.00054794,7]
[321197675,1711974647890,-151.0,0.00054794,7]
[321197676,1711974647899,-151.0,0.00054794,7]
[321197677,1711974647908,-151.0,0.00054794,7]
[321197678,1711974647917,-151.0,0.00054794,7]
[321197679,1711974647925,-153.41805755,0.00054794,120]
[321197680,1711974647934,-500.0,0.00054794,120]
[321197681,1711974647944,-500.0,0.00054794,120]
[321197682,1711974647955,-501.49598653,0.00054794,120]
[321197683,1711974647964,-500.0,0.00054794,120]
[321197684,1711974647972,-550.7302986,0.00054794,120]
[321197685,1711974647981,-500.91666116,0.00054794,120]
[321197686,1711974647992,-500.0,0.00054794,120]
[321197687,1711974648001,-500.0,0.00054794,120]
[321197688,1711974648010,-603.07458103,0.00054794,120]
[321197689,1711974648019,-503.15079781,0.00054794,120]
[321197690,1711974648030,-356.85708989,0.00054794,120]
[321197701,1711975108538,317.41762595,0.000378,2]
[321197705,1711975168223,2729.18873423,0.000378,4]
[321197706,1711975341381,979.84105643,0.0004,5]
[321197711,1711975627150,-381.037287,0.00039999,4]
[321198244,1711975838386,-257.20893695,0.000379,2]
[321198245,1711975838396,-854.52847783,0.00038658,4]
[321198246,1711975838406,-150.90945433,0.00038659,2]
[321198247,1711975838415,-166.309264,0.0004,2]
[321198248,1711975838425,-185.712182,0.00040991,120]
[321198249,1711975838434,-664.93574096,0.00040993,2]
[321198250,1711975838443,-2339.33756015,0.00041096,2]
[321198251,1711975838453,-385.27448771,0.00042421,4]
[321198252,1711975838462,-1454.01616464,0.00042421,4]
[321198253,1711975838472,-352.3799295,0.00042422,31]
[321198255,1711975838481,-155.30490084,0.00042422,4]
[321198256,1711975838491,-550.0,0.00042422,3]
[321198257,1711975838500,-550.0,0.00042422,5]
[321198258,1711975838510,-4032.0,0.00042423,4]
[321198259,1711975838520,-3800.38103001,0.00042423,2]
[321198260,1711975838530,-73698.26280812,0.00042423,60]
[321198261,1711975838539,-257.20893695,0.000429,2]
[321198262,1711975838548,-150.90945433,0.00042955,2]
[321198263,1711975838557,-1072.16538765,0.00043,4]
[321198264,1711975838569,-655.6595632,0.00043141,2]
[321198265,1711975838578,-301.81890865,0.00043677,4]
[321198266,1711975838587,-166.666666,0.00043916,2]
[321198267,1711975838595,-603.63781731,0.00044411,7]
[321198268,1711975838605,-168.5680274,0.00044512,2]
[321198269,1711975838614,-489.523798,0.00044675,2]
[321198270,1711975838623,-182.34479244,0.00044975,2]
[321198271,1711975838632,-8676.15065072,0.00045,120]
[321198272,1711975838642,-64450.60484434,0.00045,30]
[321198273,1711975838653,-166.666666,0.00045113,2]
[321198274,1711975838661,-770.0,0.00045136,3]
[321198275,1711975838670,-770.0,0.00045136,5]
[321198276,1711975838679,-1207.27563462,0.00045535,30]
[321198277,1711975838688,-166.666666,0.00046311,2]
[321198278,1711975838697,-166.666666,0.00047508,2]
[321198279,1711975838706,-257.20893695,0.000479,2]
[321198280,1711975838715,-1077.0,0.00048023,3]
[321198281,1711975838724,-1077.0,0.00048023,5]
[321198282,1711975838733,-182.34479242,0.00048212,2]
[321198283,1711975838741,-159.90337032,0.00048546,30]
[321198284,1711975838750,-166.666666,0.00048705,2]
[321198285,1711975838759,-3361.32360003,0.00049,120]
[321198286,1711975838769,-4577.22047524,0.00049799,120]
[321198287,1711975838778,-166.666666,0.00049903,2]
[321198288,1711975838787,-480.40708669,0.00049998,4]
[321198289,1711975838796,-8917.37843273,0.00049998,4]
[321198290,1711975838805,-5803.81716164,0.00049999,4]
[321198291,1711975838815,-951.80353207,0.0005,60]
[321198292,1711975838824,-8499.84054553,0.0005,120]
[321198293,1711975838833,-360.83108321,0.0005,4]
[321198294,1711975838843,-1509.0,0.00051096,10]
[321198295,1711975838851,-1509.0,0.00051096,15]
[321198296,1711975838860,-185.712182,0.00051238,120]
[321198297,1711975838869,-182.34479242,0.0005145,2]
[321198298,1711975838879,-328.64208849,0.00052044,4]
[321198299,1711975838888,-167.250805,0.00052928,2]
[321198300,1711975838898,-5618.0,0.00053,120]
[321198301,1711975838907,-177.0,0.00053,120]
[321198302,1711975838916,-156.23464849,0.00053598,60]
[321198303,1711975838925,-177.0,0.00053699,120]
[321198304,1711975838934,-2112.0,0.00054365,10]
[321198305,1711975838944,-2112.0,0.00054365,15]
[321198306,1711975838953,-367.2652655,0.00054452,2]
[321198307,1711975838962,-182.34479242,0.00054687,2]
[321198308,1711975838972,-150.5701,0.000547,2]
[321198309,1711975838981,-4380.76005445,0.00054739,15]
[321198339,1711975840699,-24900.0,0.00040914,2]
[321198340,1711975840709,-8878.22615139,0.00054739,15]
[321198341,1711975840719,-4642.25013131,0.0005478,2]
[321198375,1711975843420,-95357.74986869,0.0005478,2]
[321198376,1711975843430,-203.42024939,0.00054787,3]
[321198377,1711975843440,-216.88773324,0.00054792,4]
[321198378,1711975843450,-269.21455228,0.00054792,4]
[321198379,1711975843459,-6111.3876883,0.00054792,4]
[321198380,1711975843469,-884.78495058,0.00054792,4]
[321198381,1711975843479,-535.7627076,0.00054793,4]
[321198382,1711975843488,-716.22716036,0.00054793,4]
[321198383,1711975843498,-493.21604082,0.00054793,2]
[321198384,1711975843508,-427.0,0.00054794,2]
[321198385,1711975843517,-595.5445816,0.00054794,120]
[321198386,1711975843526,-522.23050104,0.00054794,120]
[321198387,1711975843537,-844.29,0.00054794,120]
[321198388,1711975843546,-602.6,0.00054794,120]
[321198389,1711975843556,-505.12118078,0.00054794,120]
[321198390,1711975843565,-500.0,0.00054794,120]
[321198391,1711975843575,-503.21001421,0.00054794,120]
[321198392,1711975843585,-505.64132494,0.00054794,120]
[321198393,1711975843594,-500.0,0.00054794,120]
[321198394,1711975843603,-508.34713992,0.00054794,120]
[321198395,1711975843612,-335.22649085,0.00054794,120]
[321198396,1711975843621,-500.0,0.00054794,120]
[321198397,1711975843631,-500.0,0.00054794,120]
[321198398,1711975843640,-500.0,0.00054794,120]
[321198399,1711975843649,-500.0,0.00054794,120]
[321198400,1711975843658,-504.1058148,0.00054794,120]
[321198401,1711975843667,-500.0,0.00054794,120]
[321198402,1711975843676,-500.0,0.00054794,120]
[321198403,1711975843686,-500.0,0.00054794,120]
[321198404,1711975843696,-500.0,0.00054794,120]
[321198405,1711975843704,-500.0,0.00054794,120]
[321198406,1711975843784,-500.0,0.00054794,120]
[321198407,1711975843795,-500.0,0.00054794,2]
[321198408,1711975843804,-500.0,0.00054794,120]
[321198409,1711975843814,-637.34456783,0.00054794,120]
[321198410,1711975843824,-500.0,0.00054794,120]
[321198411,1711975843833,-371.73713338,0.00054794,120]
[321198427,1711975846218,-128.26286662,0.00054794,120]
[321198428,1711975846227,-501.91472588,0.00054794,120]
[321198429,1711975846237,-500.0,0.00054794,120]
[321198430,1711975846246,-500.0,0.00054794,120]
[321198431,1711975846255,-506.90873503,0.00054794,120]
[321198432,1711975846265,-500.0,0.00054794,120]
[321198433,1711975846274,-500.0,0.00054794,120]
[321198434,1711975846283,-503.02273599,0.00054794,120]
[321198435,1711975846292,-500.0,0.00054794,120]
[321198436,1711975846304,-151.0,0.00054794,7]
[321198437,1711975846314,-526.69661379,0.00054794,120]
[321198438,1711975846324,-500.0,0.00054794,120]
[321198439,1711975846333,-687.026232,0.00054794,7]
[321198440,1711975846343,-500.0,0.00054794,120]
[321198441,1711975846354,-687.026232,0.00054794,7]
[321198442,1711975846363,-500.0,0.00054794,120]
[321198443,1711975846372,-500.0,0.00054794,120]
[321198444,1711975846383,-500.0,0.00054794,120]
[321198445,1711975846394,-152.262668,0.00054794,7]
[321198446,1711975846403,-500.0,0.00054794,120]
[321198447,1711975846412,-500.0,0.00054794,120]
[321198448,1711975846421,-500.0,0.00054794,120]
[321198449,1711975846431,-183.85069256,0.00054794,120]
[321198450,1711975846440,-500.0,0.00054794,120]
[321198451,1711975846449,-561.49816096,0.00054794,120]
[321198452,1711975846458,-151.0,0.00054794,7]
[321198453,1711975846466,-151.0,0.00054794,7]
[321198454,1711975846475,-500.0,0.00054794,120]
[321198455,1711975846484,-500.0,0.00054794,120]
[321198456,1711975846494,-500.0,0.00054794,120]
[321198457,1711975846503,-500.0,0.00054794,120]
[321198458,1711975846512,-500.0,0.00054794,120]
[321198459,1711975846521,-500.0,0.00054794,120]
[321198460,1711975846529,-500.0,0.00054794,120]
[321198461,1711975846538,-500.0,0.00054794,120]
[321198462,1711975846547,-500.0,0.00054794,120]
[321198463,1711975846557,-500.0,0.00054794,120]
[321198464,1711975846566,-500.0,0.00054794,120]
[321198465,1711975846575,-500.0,0.00054794,120]
[321198466,1711975846584,-506.34184569,0.00054794,120]
[321198467,1711975846593,-500.0,0.00054794,120]
[321198468,1711975846602,-500.0,0.00054794,120]
[321198469,1711975846611,-500.0,0.00054794,120]
[321198470,1711975846619,-500.0,0.00054794,120]
[321198471,1711975846627,-378.80717782,0.00054794,120]
[321198472,1711975846636,-500.0,0.00054794,120]
[321198473,1711975846646,-500.0,0.00054794,120]
[321198474,1711975846655,-500.0,0.00054794,120]
[321198475,1711975846664,-361.96036281,0.00054794,120]
[321198476,1711975846674,-501.2134158,0.00054794,120]
[321198477,1711975846683,-500.0,0.00054794,120]
[321198478,1711975846692,-500.0,0.00054794,120]
[321198479,1711975846701,-500.0,0.00054794,120]
[321198480,1711975846710,-151.0,0.00054794,7]
[321198481,1711975846719,-151.0,0.00054794,7]
[321198482,1711975846728,-500.0,0.00054794,120]
[321198483,1711975846738,-151.0,0.00054794,7]
[321198484,1711975846747,-151.0,0.00054794,7]
[321198485,1711975846756,-500.0,0.00054794,120]
[321198486,1711975846765,-500.0,0.00054794,120]
[321198487,1711975846774,-500.0,0.00054794,120]
[321198488,1711975846783,-500.0,0.00054794,120]
[321198489,1711975846792,-500.0,0.00054794,120]
[321198490,1711975846801,-500.0,0.00054794,120]
[321198491,1711975846810,-500.0,0.00054794,120]
[321198492,1711975846819,-500.0,0.00054794,120]
[321198493,1711975846829,-631.35,0.00054794,120]
[321198494,1711975846838,-503.08135853,0.00054794,120]
[321198495,1711975846848,-500.0,0.00054794,120]
[321198496,1711975846859,-500.0,0.00054794,120]
[321198497,1711975846869,-538.83733875,0.00054794,120]
[321198498,1711975846880,-458.625044,0.00054794,7]
[321198499,1711975846889,-511.45179558,0.00054794,120]
[321198500,1711975846898,-458.625044,0.00054794,7]
[321198501,1711975846907,-458.625044,0.00054794,7]
[321198502,1711975846916,-458.625044,0.00054794,7]
[321198503,1711975846925,-500.0,0.00054794,120]
[321198504,1711975846935,-639.21304156,0.00054794,120]
[321198505,1711975846944,-500.0,0.00054794,120]
[321198506,1711975846953,-500.0,0.00054794,120]
[321198507,1711975846962,-500.0,0.00054794,120]
[321198508,1711975846970,-151.0,0.00054794,7]
[321198509,1711975846979,-151.354133,0.00054794,7]
[321198510,1711975846988,-504.49196936,0.00054794,120]
[321198511,1711975846997,-1829.24,0.00054794,120]
[321198512,1711975847006,-500.0,0.00054794,120]
[321198513,1711975847015,-502.73427999,0.00054794,120]
[321198514,1711975847024,-302.25005715,0.00054794,120]
[321198515,1711975847033,-500.0,0.00054794,120]
[321198516,1711975847042,-500.0,0.00054794,120]
[321198517,1711975847051,-619.22,0.00054794,120]
[321198518,1711975847061,-500.0,0.00054794,120]
[321198519,1711975847071,-504.07,0.00054794,120]
[321198520,1711975847081,-500.0,0.00054794,120]
[321198521,1711975847090,-507.04785013,0.00054794,120]
[321198522,1711975847099,-151.0,0.00054794,7]
[321198523,1711975847108,-500.0,0.00054794,120]
[321198524,1711975847117,-151.0,0.00054794,7]
[321198525,1711975847126,-561.34,0.00054794,120]
[321198526,1711975847135,-500.0,0.00054794,120]
[321198527,1711975847144,-5588.18,0.00054794,120]
[321198528,1711975847152,-500.0,0.00054794,120]
[321198529,1711975847161,-500.0,0.00054794,120]
[321198530,1711975847170,-503.92427033,0.00054794,120]
[321198531,1711975847179,-500.0,0.00054794,120]
[321198532,1711975847189,-500.0,0.00054794,120]
[321198533,1711975847198,-500.0,0.00054794,120]
[321198534,1711975847208,-500.0,0.00054794,120]
[321198535,1711975847217,-501.07271869,0.00054794,120]
[321198536,1711975847227,-500.0,0.00054794,120]
[321198537,1711975847236,-500.0,0.00054794,120]
[321198538,1711975847247,-500.0,0.00054794,120]
[321198539,1711975847255,-500.0,0.00054794,120]
[321198540,1711975847266,-500.0,0.00054794,120]
[321198541,1711975847275,-10.25813484,0.00054794,7]
[321198553,1711976072056,26090.28892333,0.00028944,120]
[321198556,1711976165478,400.0,0.00039897,5]
[321198558,1711976222045,400.0,0.00039898,5]
[321198559,1711976286603,400.0,0.00039796,5]
[321198560,1711976341415,400.0,0.00039797,5]
[321198562,1711976403563,400.0,0.00039797,5]
[321198563,1711976408209,1010.03414963,0.00035166,2]
[321198564,1711976409362,639.50170748,0.00036924,2]
[321198565,1711976461529,400.0,0.00039797,5]
[321198566,1711976522415,400.0,0.00039797,5]
[321198567,1711976560661,380.0,0.00038852,120]
[321198568,1711976581407,400.0,0.00039797,5]
[321198570,1711976620963,398.7815717,0.00039915,31]
[321198571,1711976641340,400.0,0.00039913,5]
[321198572,1711976672385,467.29947671,0.00039998,31]
[321198573,1711976704821,400.0,0.00039781,5]
[321198574,1711976706792,163.5109555,0.00039815,9]
[321198575,1711976751378,1000.0,0.0004,5]
[321198576,1711976762959,202.43954864,0.00039899,18]
[321198577,1711976763039,400.0,0.00038874,5]
[321198578,1711976769087,1000.0,0.0004,5]
[321198579,1711976821391,400.0,0.00038852,5]
[321198580,1711976833573,410.27610427,0.00037798,2]
[321198582,1711976883182,400.0,0.00038855,5]
[321198583,1711976888504,154.92253873,0.00037798,4]
[321198584,1711976891958,185.712182,0.000378,120]
[321198585,1711976904488,238.73653744,0.00037798,4]
[321198586,1711976923354,154.92253873,0.00037798,2]
[321198587,1711976931189,154.92253873,0.00038292,30]
[321198588,1711976931873,652.25615021,0.00037798,2]
[321198591,1711976941269,154.92253873,0.00037798,2]
[321198592,1711976941339,400.0,0.0003874,5]
[321198593,1711976945193,231.23074826,0.00038352,30]
[321198594,1711976955269,157.96398213,0.00037798,2]
[321198595,1711977003037,400.0,0.0003874,5]
[321198637,1711977038340,-212.45039143,0.00037929,4]
[321198639,1711977038350,-6915.32215473,0.00037929,4]
[321198641,1711977038359,-2099.152343,0.0003793,2]
[321198643,1711977038368,-154.92253873,0.00038289,4]
[321198645,1711977038377,-379.754361,0.0003829,4]
[321198647,1711977038386,-210.75703706,0.0003829,4]
[321198649,1711977038396,-167.514249,0.00038297,2]
[321198651,1711977038405,-400.0,0.0003874,3]
[321198653,1711977038415,-4460.12692505,0.00038741,2]
[321198656,1711977038434,-20439.87307495,0.00038741,2]
[321198658,1711977038444,-197.0030957,0.00038758,2]
[321198660,1711977038453,-581.00391454,0.00038853,4]
[321198663,1711977038462,-838.397545,0.00038856,2]
[321198665,1711977038470,-443.5215157,0.00038877,2]
[321198667,1711977038479,-2143.77010819,0.00039782,4]
[321198669,1711977038488,-199.83725678,0.00039798,2]
[321198671,1711977038497,-1152.52197049,0.00039798,2]
[321198673,1711977038506,-4180.77301715,0.00039899,2]
[321198675,1711977038515,-423.90968866,0.00039899,2]
[321198677,1711977038524,-589.49522065,0.00039914,4]
[321198679,1711977038533,-2096.186625,0.00039914,4]
[321198681,1711977038542,-463.53746325,0.00039914,4]
[321198683,1711977038551,-292.0954061,0.00039915,4]
[321198685,1711977038560,-343.03276652,0.00039915,4]
[321198687,1711977038570,-259.32671129,0.00039915,4]
[321198689,1711977038580,-500.0,0.00039915,2]
[321198692,1711977038590,-925.87076632,0.00039999,4]
[321198693,1711977038599,-174.6666672,0.0004,2]
[321198695,1711977038612,-2351.26098416,0.0004013,2]
[321198698,1711977038621,-273.55514728,0.00040182,2]
[321198700,1711977038630,-174.612883,0.00040282,2]
[321198702,1711977038640,-423.90968865,0.00040518,2]
[321198704,1711977038650,-4973.17449207,0.00041096,2]
[321198706,1711977038659,-166.666666,0.00041096,2]
[321198708,1711977038669,-423.90968865,0.00041136,2]
[321198710,1711977038678,-560.0,0.00041377,3]
[321198712,1711977038687,-560.0,0.00041377,5]
[321198714,1711977038697,-423.90968865,0.00041755,2]
[321198716,1711977038706,-166.666666,0.00042058,2]
[321198717,1711977038716,-423.90968865,0.00042373,2]
[321198720,1711977038725,-5803.81716064,0.00042374,7]
[321198721,1711977038734,-7837.53516574,0.00042374,2]
[321198723,1711977038743,-909.62241761,0.00042374,2]
[321198725,1711977038752,-1729.61484199,0.00042374,2]
[321198727,1711977038762,-6226.71604074,0.00042374,2]
[321198729,1711977038771,-13854.78402661,0.00042374,32]
[321198732,1711977038781,-11082.93778099,0.00042374,31]
[321198734,1711977038790,-480.40708669,0.00042421,4]
[321198736,1711977038799,-594.22423108,0.00042472,2]
[321198737,1711977038808,-219.49271421,0.00042472,4]
[321198739,1711977038818,-601.44972216,0.00042472,5]
[321198742,1711977038827,-3909.49808434,0.00042473,4]
[321198744,1711977038837,-352.4026251,0.00042473,2]
[321198746,1711977038846,-1505.06398234,0.00042473,2]
[321198747,1711977038856,-794.83014187,0.00042473,4]
[321198750,1711977038865,-4232.94357124,0.00042474,120]
[321198752,1711977038875,-410.27610427,0.00042798,2]
[321198753,1711977038884,-166.666666,0.00043019,2]
[321198755,1711977038894,-273.55514726,0.00043158,2]
[321198757,1711977038903,-166.666666,0.00043981,2]
[321198759,1711977038912,-783.0,0.00044193,3]
[321198761,1711977038921,-783.0,0.00044193,5]
[321198763,1711977038930,-301.84907546,0.00044592,4]
[321198765,1711977038939,-166.666666,0.00044942,2]
[321198767,1711977038949,-8676.15065072,0.00045,120]
[321198770,1711977038961,-64450.60484434,0.00045,30]
[321198772,1711977038970,-603.69815092,0.00045342,7]
[321198774,1711977038979,-166.666666,0.00045904,2]
[321198775,1711977038988,-12718.85148701,0.00046,2]
[321198777,1711977038997,-273.55514726,0.00046134,2]
[321198780,1711977039008,-271.91554496,0.00046234,30]
[321198782,1711977039016,-1207.39630185,0.00046489,30]
[321198784,1711977039025,-6010.58283832,0.0004698,120]
[321198786,1711977039034,-1097.0,0.00047202,3]
[321198787,1711977039043,-1097.0,0.00047202,5]
[321198789,1711977039053,-410.27610427,0.00047798,2]
[321198791,1711977039062,-3361.32360003,0.00049,120]
[321198792,1711977039071,-951.80353207,0.0005,60]
[321198793,1711977039080,-3521.52886052,0.0005,120]
[321198794,1711977039092,-2184.01684811,0.0005,120]
[321198845,1711977043524,-2794.2948369,0.0005,120]
[321198846,1711977043533,-360.83108321,0.0005,4]
[321198847,1711977043543,-7224.40384376,0.0005,120]
[321198873,1711977046732,-83334.51130166,0.0005,120]
[321198874,1711977046744,-12023.5813437,0.0005,120]
[321198875,1711977046754,-191.53579377,0.0005,120]
[321198876,1711977046763,-205.83558861,0.0005,20]
[321198877,1711977046773,-11018.61198166,0.0005,30]
[321198878,1711977046782,-28252.88068376,0.0005,2]
[321198879,1711977097073,20531.85815495,0.000375,2]
[321198898,1711978233771,-154.92253873,0.00039973,4]
[321198899,1711978233780,-174.24068959,0.00039974,4]